bitfinex-derivatives/quotes_SOLF0:USTF0_20250109
["timestamp","ask_amount","ask_price","bid_price","bid_amount"]
[1736439037625,1.6155,192.69,192.61,2.5964]
[1736439037831,2.596,192.65,192.55,1.5349]
[1736439038322,2.5961,192.65,192.58,2.5969]
[1736439038521,33.63250625,192.64,192.52,3.1182]
[1736439038930,2.5967,192.6,192.54,2.5974]
[1736439039132,38.71250625,192.64,192.52,3.1182]
[1736439039630,2.5965,192.61,192.52,3.1182]
[1736439040335,38.71250625,192.64,192.52,3.1182]
[1736439040627,33.63250625,192.58,192.42,33.63250625]
[1736439040832,1.5402,192.57,192.48,2.5982]
[1736439041030,2.5976,192.54,192.48,2.5982]
[1736439041426,3.0726,192.57,192.48,2.5982]
[1736439041631,2.5974,192.55,192.48,2.5982]
[1736439041834,5.08,192.56,192.49,2.5981]
[1736439042035,5.08,192.56,192.42,33.63250625]
[1736439042238,2.5979,192.51,192.45,2.5986]
[1736439042537,33.63250625,192.55,192.45,2.5986]
[1736439042744,2.5977,192.52,192.45,2.5986]
[1736439043037,33.63250625,192.55,192.45,2.5986]
[1736439043534,33.63250625,192.55,192.44,2.5988]
[1736439043927,2.5982,192.49,192.44,2.5988]
[1736439044530,2.5983,192.48,192.43,2.5989]
[1736439045439,33.63250625,192.49,192.36,1.4995]
[1736439045937,33.63250625,192.52,192.36,35.13200625]
[1736439046232,33.63250625,192.49,192.36,1.4995]
[1736439046537,5.08,192.48,192.36,1.4995]
[1736439046737,6.5785,192.48,192.36,1.4995]
[1736439047136,2.5989,192.44,192.39,2.5995]
[1736439047329,1.5616,192.47,192.36,1.4995]
[1736439047535,1.5616,192.47,192.36,35.13200625]
[1736439048635,1.5616,192.47,192.36,1.4995]
[1736439048934,2.5989,192.44,192.38,2.5995]
[1736439049137,2.5989,192.44,192.36,1.4995]
[1736439049540,2.599,192.43,192.38,2.5996]
[1736439050238,2.5992,192.41,192.36,2.5999]
[1736439050637,35.19120625,192.46,192.34,1.6171]
[1736439050840,33.63250625,192.43,192.26,33.63250625]
[1736439051143,33.63250625,192.43,192.26,36.78090625]
[1736439051541,33.63250625,192.4,192.32,2.6003]
[1736439052052,2.6,192.35,192.26,3.1484]
[1736439052346,33.63250625,192.37,192.26,1.6166]
[1736439052543,1.6359,192.36,192.26,1.6166]
[1736439052745,2.6004,192.32,192.27,2.6011]
[1736439052942,1.6359,192.36,192.25,1.605]
[1736439053140,1.6359,192.36,192.31,2.6005]
[1736439053344,1.6359,192.36,192.25,1.605]
[1736439055046,2.6004,192.33,192.28,2.601]
[1736439055347,1.6359,192.36,192.28,2.601]
[1736439055551,40.0826092,192.5,192.25,1.605]
[1736439055846,20.77965137,192.42,192.25,1.605]
[1736439056041,20.77965137,192.42,192.26,1.4868]
[1736439056548,20.77965137,192.42,192.27,1.498]
[1736439057347,2.5998,192.37,192.32,2.6003]
[1736439058342,2.6,192.36,192.32,2.6003]
[1736439058548,20.77965137,192.42,192.31,2.6006]
[1736439058748,20.77965137,192.39,192.27,1.498]
[1736439058949,20.77965137,192.39,192.24,20.77965137]
[1736439059146,3.155,192.38,192.29,2.6007]
[1736439059442,2.6003,192.34,192.24,20.77965137]
[1736439059849,2.6003,192.34,192.29,2.6007]
[1736439061051,3.155,192.38,192.24,20.77965137]
[1736439061354,1.5409,192.38,192.24,20.77965137]
[1736439061557,2.6001,192.35,192.28,2.6009]
[1736439061749,20.77965137,192.36,192.21,20.77965137]
[1736439062151,2.6006,192.32,192.25,2.6013]
[1736439062450,20.77965137,192.36,192.19,4.7692]
[1736439062755,2.6005,192.32,192.24,2.6015]
[1736439062956,20.77965137,192.33,192.19,4.7692]
[1736439063357,2.6012,192.27,192.22,2.6017]
[1736439063556,2.6012,192.27,192.19,4.7692]
[1736439064259,5.08,192.32,192.19,4.7692]
[1736439064956,5.08,192.32,192.21,20.77965137]
[1736439065351,5.08,192.32,192.28,2.6008]
[1736439065953,5.08,192.32,192.3,2.6007]
[1736439066461,5.08,192.32,192.21,20.77965137]
[1736439067049,7.6804,192.32,192.21,20.77965137]
[1736439067558,20.77965137,192.36,192.21,20.77965137]
[1736439067759,1.5409,192.38,192.24,20.77965137]
[1736439067960,1.5409,192.38,192.27,20.77965137]
[1736439068163,5.08,192.44,192.28,3.0182]
[1736439068355,6.6732,192.44,192.28,3.0182]
[1736439068557,2.5996,192.39,192.34,2.6001]
[1736439068756,20.77965137,192.42,192.28,3.0182]
[1736439068962,1.5932,192.44,192.28,3.0182]
[1736439069153,2.5994,192.4,192.35,2.5999]
[1736439069361,20.77965137,192.43,192.29,1.6359]
[1736439069859,20.77965137,192.43,192.34,2.6001]
[1736439070063,20.77965137,192.43,192.29,1.6359]
[1736439070264,20.77965137,192.4,192.29,1.6359]
[1736439070457,2.5999,192.37,192.32,2.6003]
[1736439070665,20.77965137,192.4,192.28,3.0182]
[1736439071363,20.77965137,192.43,192.28,3.0182]
[1736439071761,2.5994,192.4,192.28,3.0182]
[1736439071958,1.5932,192.44,192.3,20.77965137]
[1736439072259,2.5991,192.42,192.37,2.5997]
[1736439072462,2.5991,192.42,192.3,20.77965137]
[1736439072463,20.77965137,192.43,192.28,3.0182]
[1736439073465,2.5994,192.4,192.28,3.0182]
[1736439073865,1.5932,192.44,192.3,20.77965137]
[1736439075067,2.5994,192.4,192.36,2.5998]
[1736439076361,2.5994,192.4,192.37,2.5998]
[1736439076765,1.5932,192.44,192.3,20.77965137]
[1736439076963,1.5932,192.44,192.34,2.6]
[1736439077166,1.5932,192.44,192.31,1.5422]
[1736439077570,1.5932,192.44,192.37,2.5998]
[1736439078167,20.77965137,192.43,192.34,2.6]
[1736439078562,2.5996,192.39,192.34,2.6]
[1736439078759,20.77965137,192.43,192.34,2.6]
[1736439079065,2.5996,192.38,192.34,2.6]
[1736439079567,2.5996,192.38,192.35,2.6]
[1736439079969,20.77965137,192.43,192.35,2.6]
[1736439080160,2.5995,192.39,192.35,2.6]
[1736439080769,20.77965137,192.43,192.35,2.6]
[1736439080770,2.5997,192.38,192.35,2.6]
[1736439080967,2.5997,192.38,192.34,2.6002]
[1736439082268,2.5997,192.38,192.35,2.6]
[1736439082673,2.5997,192.38,192.28,3.0182]
[1736439083065,2.6001,192.35,192.31,2.6005]
[1736439083375,20.77965137,192.4,192.28,3.0182]
[1736439083768,20.77965137,192.43,192.28,3.0182]
[1736439084263,1.5932,192.44,192.38,2.5996]
[1736439084264,2.5993,192.41,192.38,2.5996]
[1736439084672,1.5932,192.44,192.31,1.6288]
[1736439084875,2.5994,192.4,192.31,1.6288]
[1736439085074,1.5932,192.44,192.31,1.6288]
[1736439085369,20.77965137,192.43,192.31,1.6288]
[1736439085871,2.5994,192.4,192.31,1.6288]
[1736439086077,1.5932,192.44,192.31,1.6288]
[1736439086675,2.5995,192.39,192.31,1.6288]
[1736439087075,2.5995,192.39,192.35,2.5999]
[1736439087973,2.5995,192.39,192.36,2.5999]
[1736439088770,1.5932,192.44,192.37,2.5997]
[1736439088771,2.5994,192.4,192.37,2.5997]
[1736439088978,142.01101735,192.47,192.31,1.6288]
[1736439089175,174.25528617,192.48,192.33,20.77965137]
[1736439089771,2.5988,192.44,192.4,2.5992]
[1736439089975,1.5857,192.5,192.36,20.77965137]
[1736439090176,142.01101735,192.52,192.39,20.77965137]
[1736439090379,142.01101735,192.52,192.4,1.5256]
[1736439090584,162.79066872,192.55,192.4,1.5256]
[1736439090783,142.01101735,192.55,192.4,1.5256]
[1736439090987,142.01101735,192.55,192.5,2.598]
[1736439091191,142.01101735,192.55,192.42,20.77965137]
[1736439091486,142.01101735,192.55,192.51,2.5978]
[1736439091790,6.6611,192.58,192.45,20.77965137]
[1736439091990,6.6611,192.58,192.46,3.1933]
[1736439092181,27.44075137,192.58,192.46,3.1933]
[1736439093182,2.5974,192.55,192.46,3.1933]
[1736439093379,27.44075137,192.58,192.49,2.5981]
[1736439093789,2.5973,192.56,192.49,2.5981]
[1736439093989,27.44075137,192.58,192.49,2.5981]
[1736439094393,2.5976,192.54,192.49,2.5981]
[1736439095996,27.44075137,192.58,192.42,20.77965137]
[1736439096190,20.77965137,192.55,192.4,1.5256]
[1736439096389,20.77965137,192.52,192.4,1.5256]
[1736439096589,20.77965137,192.52,192.43,2.5989]
[1736439096792,1.5983,192.51,192.43,2.5989]
[1736439096996,1.5983,192.51,192.36,20.77965137]
[1736439097196,20.77965137,192.49,192.34,3.0699]
[1736439097996,20.77965137,192.46,192.34,3.0699]
[1736439098792,2.5993,192.41,192.36,2.5998]
[1736439099492,2.5993,192.41,192.37,2.5997]
[1736439099795,22.39855137,192.5,192.34,3.0699]
[1736439100194,2.5987,192.46,192.41,2.5991]
[1736439101401,22.39855137,192.5,192.34,3.0699]
[1736439101796,2.5986,192.46,192.4,2.5993]
[1736439102100,22.39855137,192.5,192.34,3.0699]
[1736439102296,2.5985,192.47,192.42,2.5991]
[1736439102700,2.5985,192.47,192.36,20.77965137]
[1736439102904,2.5985,192.47,192.43,2.5988]
[1736439105205,2.5986,192.46,192.43,2.5988]
[1736439106103,22.39855137,192.5,192.41,2.5992]
[1736439106700,2.5988,192.45,192.41,2.5992]
[1736439107103,2.599,192.43,192.39,2.5994]
[1736439107295,22.39855137,192.5,192.34,3.0699]
[1736439108304,2.5988,192.45,192.4,2.5992]
[1736439110200,2.5988,192.45,192.41,2.5992]
[1736439111897,1.6189,192.5,192.36,20.77965137]
[1736439112502,2.5984,192.47,192.43,2.5988]
[1736439113006,2.5984,192.47,192.4,2.5994]
[1736439113201,2.5986,192.46,192.37,20.77965137]
[1736439114809,1.5983,192.51,192.37,20.77965137]
[1736439115104,1.5964,192.56,192.43,20.77965137]
[1736439115311,2.5975,192.54,192.5,2.5979]
[1736439116105,2.9919,192.61,192.46,20.77965137]
[1736439116506,2.9919,192.61,192.53,2.5975]
[1736439116507,2.5969,192.58,192.53,2.5975]
[1736439117202,2.5969,192.58,192.46,20.77965137]
[1736439117402,2.9919,192.61,192.46,20.77965137]
[1736439117608,2.5968,192.59,192.46,20.77965137]
[1736439117809,2.9919,192.61,192.46,20.77965137]
[1736439118014,2.5969,192.58,192.53,2.5975]
[1736439118411,2.5969,192.58,192.46,20.77965137]
[1736439118807,2.9919,192.61,192.46,20.77965137]
[1736439119008,2.5973,192.56,192.46,20.77965137]
[1736439119213,2.9919,192.61,192.46,20.77965137]
[1736439119610,2.5971,192.57,192.51,2.5978]
[1736439119810,2.9919,192.61,192.46,20.77965137]
[1736439120013,2.9919,192.61,192.49,20.77965137]
[1736439120209,82.7164,192.62,192.49,20.77965137]
[1736439120713,1.5964,192.62,192.49,20.77965137]
[1736439121112,2.5965,192.61,192.57,2.5969]
[1736439121412,20.77965137,192.65,192.49,20.77965137]
[1736439121413,25.85965137,192.65,192.49,20.77965137]
[1736439121609,2.5962,192.64,192.6,2.5966]
[1736439121822,2.5962,192.64,192.53,4.7132]
[1736439122005,3.043,192.68,192.53,4.7132]
[1736439122311,1.5219,192.69,192.55,20.77965137]
[1736439122711,5.08,192.72,192.58,20.77965137]
[1736439123110,9.6596,192.74,192.58,20.77965137]
[1736439123413,2.5959,192.66,192.61,2.5965]
[1736439123709,2.5959,192.66,192.55,5.08]
[1736439123710,20.77965137,192.69,192.55,5.08]
[1736439123907,2.5958,192.67,192.61,2.5964]
[1736439124106,20.77965137,192.72,192.57,20.77965137]
[1736439124712,2.5954,192.7,192.65,2.596]
[1736439125110,20.77965137,192.72,192.57,20.77965137]
[1736439125511,2.5955,192.69,192.64,2.5961]
[1736439126006,2.5955,192.69,192.57,20.77965137]
[1736439126007,2.5958,192.67,192.62,2.5963]
[1736439126206,20.77965137,192.72,192.57,20.77965137]
[1736439126920,20.77965137,192.78,192.6,20.77965137]
[1736439127121,2.595,192.72,192.67,2.5956]
[1736439128215,2.5955,192.69,192.65,2.596]
[1736439128410,20.77965137,192.69,192.54,20.77965137]
[1736439128618,20.77965137,192.69,192.55,1.5742]
[1736439129013,2.5959,192.66,192.55,1.5742]
[1736439129215,20.77965137,192.69,192.55,1.5742]
[1736439129411,3.2334,192.7,192.57,20.77965137]
[1736439129612,2.5956,192.68,192.57,20.77965137]
[1736439130217,2.5955,192.69,192.64,2.596]
[1736439130514,1.6243,192.7,192.57,20.77965137]
[1736439130717,5.08,192.71,192.6,20.77965137]
[1736439130917,5.08,192.71,192.61,1.5239]
[1736439132121,5.08,192.71,192.61,3.0484]
[1736439132518,7.6752,192.71,192.67,2.5957]
[1736439132825,7.6752,192.71,192.61,3.0484]
[1736439133125,7.6752,192.71,192.67,2.5957]
[1736439133823,5.08,192.71,192.69,2.5954]
[1736439134016,1.4905,192.77,192.63,20.77965137]
[1736439134216,20.77965137,192.81,192.66,20.77965137]
[1736439134518,2.5943,192.78,192.74,2.5948]
[1736439135820,2.594,192.8,192.76,2.5944]
[1736439137121,2.5939,192.81,192.77,2.5942]
[1736439137824,0.19741,192.82,192.72,1.4843]
[1736439138024,2.5941,192.8,192.72,1.4843]
[1736439138220,0.19741,192.82,192.72,1.4843]
[1736439138622,0.19741,192.82,192.76,2.5944]
[1736439140026,2.594,192.8,192.76,2.5944]
[1736439140422,2.594,192.8,192.77,2.5943]
[1736439140925,0.19741,192.82,192.72,1.4843]
[1736439141128,0.19741,192.82,192.7,1.5192]
[1736439141129,20.77965137,192.81,192.7,1.5192]
[1736439142128,2.5945,192.77,192.73,2.5949]
[1736439142324,20.77965137,192.78,192.67,1.6182]
[1736439142725,2.5949,192.73,192.67,1.6182]
[1736439143031,20.77965137,192.75,192.64,1.6081]
[1736439143229,20.77965137,192.72,192.64,1.6081]
[1736439143527,20.77965137,192.72,192.64,2.5961]
[1736439143732,20.77965137,192.72,192.63,58.90796681]
[1736439144431,20.77965137,192.72,192.63,61.50416681]
[1736439144733,2.595,192.73,192.66,2.5958]
[1736439144928,20.77965137,192.75,192.66,2.5958]
[1736439145132,5.06,192.76,192.63,58.90796681]
[1736439146231,2.5952,192.71,192.63,58.90796681]
[1736439146431,20.77965137,192.75,192.63,58.90796681]
[1736439146632,2.5953,192.71,192.66,2.5957]
[1736439146827,20.77965137,192.75,192.66,2.5957]
[1736439147231,20.77965137,192.75,192.63,58.90796681]
[1736439147932,2.5951,192.72,192.64,2.596]
[1736439148132,20.77965137,192.75,192.64,2.596]
[1736439148332,20.77965137,192.75,192.63,58.90796681]
[1736439148726,20.77965137,192.72,192.65,2.596]
[1736439149033,5.06,192.76,192.59,3.2062]
[1736439149034,20.77965137,192.69,192.59,3.2062]
[1736439149229,5.06,192.76,192.59,3.2062]
[1736439149230,20.77965137,192.72,192.59,3.2062]
[1736439150137,20.77965137,192.72,192.63,2.5962]
[1736439150333,20.77965137,192.72,192.59,3.2062]
[1736439150638,20.77965137,192.69,192.6,2.5965]
[1736439151033,20.77965137,192.69,192.59,1.6081]
[1736439151338,2.5958,192.66,192.62,2.5964]
[1736439154041,3.2146,192.77,192.62,20.77965137]
[1736439154239,1.6012,192.77,192.65,20.77965137]
[1736439154438,4.1956,192.77,192.73,2.5948]
[1736439154832,4.1956,192.77,192.67,1.5763]
[1736439155038,1.6012,192.77,192.67,1.5763]
[1736439155741,1.6012,192.77,192.68,2.5955]
[1736439156133,1.6012,192.77,192.67,1.5763]
[1736439156340,2.5953,192.7,192.63,1.555]
[1736439156540,1.6012,192.77,192.63,1.555]
[1736439156943,2.5949,192.73,192.68,2.5955]
[1736439157340,2.5944,192.77,192.73,2.5949]
[1736439157542,0.19741,192.82,192.68,20.77965137]
[1736439157849,0.19741,192.82,192.69,3.0938]
[1736439158345,0.19741,192.82,192.71,20.77965137]
[1736439158542,0.19741,192.82,192.72,1.6014]
[1736439158748,2.5941,192.8,192.75,2.5945]
[1736439159245,2.5945,192.77,192.72,4.1964]
[1736439159544,20.97706137,192.82,192.72,1.6014]
[1736439159848,0.19741,192.82,192.73,2.5949]
[1736439160447,2.5944,192.77,192.73,2.5949]
[1736439161140,2.5946,192.75,192.72,1.6014]
[1736439161341,20.97706137,192.82,192.69,3.0938]
[1736439161541,2.5952,192.72,192.67,2.5956]
[1736439161735,20.77965137,192.76,192.65,1.534]
[1736439162644,2.5951,192.72,192.68,2.5954]
[1736439163748,2.5951,192.72,192.69,2.5954]
[1736439164447,5.06,192.77,192.66,20.77965137]
[1736439164639,20.97706137,192.82,192.66,20.77965137]
[1736439164847,2.5942,192.78,192.74,2.5947]
[1736439165945,2.5942,192.78,192.69,20.77965137]
[1736439166247,2.594,192.8,192.69,20.77965137]
[1736439166446,2.594,192.8,192.7,1.4723]
[1736439166647,2.594,192.8,192.73,2.5949]
[1736439166842,2.594,192.8,192.71,1.4744]
[1736439167149,2.5942,192.79,192.75,2.5946]
[1736439167750,2.594,192.8,192.76,2.5945]
[1736439168142,1.615,192.83,192.76,2.5945]
[1736439168347,2.5941,192.79,192.75,2.5945]
[1736439169653,2.5941,192.79,192.76,2.5945]
[1736439170649,20.77965137,192.82,192.71,1.4744]
[1736439170958,20.77965137,192.79,192.65,1.534]
[1736439171158,2.5947,192.75,192.68,2.5955]
[1736439171456,20.77965137,192.79,192.68,2.5955]
[1736439171651,20.77965137,192.79,192.65,1.534]
[1736439172449,20.77965137,192.79,192.69,2.5954]
[1736439173053,2.595,192.73,192.69,2.5954]
[1736439173455,20.77965137,192.79,192.69,2.5954]
[1736439173859,2.5945,192.76,192.69,2.5954]
[1736439174057,20.77965137,192.79,192.69,2.5954]
[1736439174461,2.595,192.73,192.69,2.5954]
[1736439176160,20.77965137,192.79,192.65,1.534]
[1736439176363,20.77965137,192.79,192.68,2.5955]
[1736439176558,20.77965137,192.79,192.65,1.534]
[1736439177150,2.5953,192.71,192.67,2.5956]
[1736439177355,20.77965137,192.79,192.65,1.534]
[1736439177756,2.5952,192.72,192.68,2.5955]
[1736439177959,20.77965137,192.79,192.68,2.5955]
[1736439178456,20.77965137,192.79,192.65,1.534]
[1736439178660,20.77965137,192.79,192.67,2.5956]
[1736439178868,20.77965137,192.79,192.65,1.534]
[1736439179057,20.77965137,192.79,192.67,2.5956]
[1736439179862,20.77965137,192.79,192.65,1.534]
[1736439180063,2.5953,192.71,192.68,2.5956]
[1736439180457,20.77965137,192.76,192.66,2.5958]
[1736439180762,3.0833,192.75,192.66,2.5958]
[1736439180966,3.0833,192.75,192.65,1.534]
[1736439181258,2.5953,192.71,192.68,2.5956]
[1736439181461,2.5953,192.71,192.65,1.534]
[1736439181955,2.5953,192.71,192.67,2.5956]
[1736439182165,2.5953,192.71,192.65,1.534]
[1736439183255,2.5953,192.71,192.67,2.5956]
[1736439184054,147.19801735,192.84,192.66,12.93363123]
[1736439184265,12.93363123,192.81,192.69,12.93363123]
[1736439184762,2.5944,192.77,192.69,12.93363123]
[1736439184962,12.93363123,192.81,192.69,12.93363123]
[1736439185165,12.93363123,192.78,192.66,12.93363123]
[1736439185563,12.93363123,192.78,192.7,2.5952]
[1736439186566,2.5948,192.74,192.7,2.5952]
[1736439188166,2.5948,192.74,192.65,1.534]
[1736439188367,2.5948,192.74,192.71,2.5952]
[1736439189659,20.68942949,192.79,192.65,1.534]
[1736439189865,20.68942949,192.76,192.61,1.6285]
[1736439190061,1.5502,192.75,192.61,1.6285]
[1736439190268,2.5955,192.69,192.66,2.5958]
[1736439191164,2.5954,192.7,192.66,2.5958]
[1736439191966,5.06,192.73,192.66,2.5958]
[1736439191967,2.5955,192.69,192.66,2.5958]
[1736439192662,2.5955,192.69,192.61,1.6285]
[1736439192867,20.68942949,192.7,192.6,1.6023]
[1736439193775,20.68942949,192.7,192.57,1.553]
[1736439193967,20.68942949,192.67,192.56,58.927802]
[1736439194164,5.06,192.73,192.51,1.5581]
[1736439194165,20.68942949,192.64,192.51,3.1652]
[1736439194367,5.06,192.63,192.51,3.1652]
[1736439194771,5.06,192.63,192.54,2.5975]
[1736439194966,5.06,192.63,192.51,3.1652]
[1736439195369,2.5969,192.59,192.54,2.5974]
[1736439195570,5.06,192.63,192.54,2.5974]
[1736439196171,5.06,192.63,192.55,2.5973]
[1736439196976,2.5968,192.6,192.55,2.5973]
[1736439197270,5.06,192.63,192.51,3.1652]
[1736439197478,2.5965,192.62,192.57,2.597]
[1736439197772,5.06,192.63,192.57,2.597]
[1736439197975,5.06,192.63,192.51,3.1652]
[1736439198168,5.06,192.63,192.55,2.5973]
[1736439198568,2.5968,192.6,192.55,2.5973]
[1736439198767,5.06,192.63,192.55,2.5973]
[1736439199079,2.5968,192.6,192.55,2.5973]
[1736439199578,2.5968,192.6,192.56,2.5972]
[1736439199775,2.5968,192.59,192.51,3.1652]
[1736439199973,5.06,192.63,192.51,3.1652]
[1736439200174,20.68942949,192.61,192.53,2.5976]
[1736439200676,20.68942949,192.61,192.54,2.5974]
[1736439201178,2.5971,192.57,192.54,2.5974]
[1736439201380,20.68942949,192.61,192.47,22.28282949]
[1736439201774,2.5971,192.57,192.47,22.28282949]
[1736439202078,20.68942949,192.61,192.52,2.5976]
[1736439202673,20.68942949,192.61,192.47,1.5934]
[1736439203071,20.68942949,192.61,192.49,2.5981]
[1736439203576,20.68942949,192.58,192.48,2.5983]
[1736439203776,3.0484,192.57,192.48,2.5983]
[1736439203972,2.5978,192.52,192.48,2.5983]
[1736439204684,7.6575,192.54,192.5,2.5979]
[1736439205481,2.5973,192.55,192.52,2.5977]
[1736439205874,8.1084,192.57,192.52,2.5977]
[1736439206077,10.7056,192.57,192.52,2.5977]
[1736439206280,8.1084,192.57,192.52,2.5977]
[1736439206474,8.1084,192.57,192.46,58.96031234]
[1736439206879,2.5974,192.55,192.46,58.96031234]
[1736439207082,2.5974,192.55,192.51,2.5978]
[1736439207384,2.5978,192.52,192.46,58.96031234]
[1736439207777,8.1084,192.57,192.46,58.96031234]
[1736439207977,2.5973,192.56,192.46,58.96031234]
[1736439208182,6.6351,192.57,192.46,58.96031234]
[1736439208585,25.74942949,192.64,192.47,20.68942949]
[1736439208777,27.32682949,192.64,192.47,20.68942949]
[1736439208973,27.32682949,192.64,192.54,2.5975]
[1736439209178,20.68942949,192.61,192.48,1.5425]
[1736439209881,2.5972,192.57,192.53,2.5976]
[1736439211087,2.5972,192.56,192.53,2.5976]
[1736439211887,2.5971,192.57,192.53,2.5976]
[1736439212288,2.5971,192.57,192.48,1.5425]
[1736439212486,2.5971,192.57,192.54,2.5975]
[1736439212990,1.5774,192.64,192.56,2.5971]
[1736439212991,22.26682949,192.64,192.56,2.5971]
[1736439213289,12.9513834,192.62,192.5,12.9513834]
[1736439213685,12.9513834,192.62,192.56,2.5972]
[1736439213886,12.9513834,192.62,192.5,12.9513834]
[1736439214296,15.5478834,192.62,192.58,2.5968]
[1736439214597,12.9513834,192.62,192.58,2.5968]
[1736439215397,2.5966,192.61,192.58,2.5968]
[1736439217901,2.5967,192.6,192.57,2.5969]
[1736439218098,2.5967,192.6,192.5,12.9513834]
[1736439218705,2.5967,192.6,192.57,2.597]
[1736439218905,2.5969,192.58,192.5,12.9513834]
[1736439219301,2.5969,192.58,192.54,2.5974]
[1736439220003,2.5968,192.59,192.56,2.5972]
[1736439220696,2.597,192.58,192.55,2.5973]
[1736439220902,2.597,192.58,192.5,12.9513834]
[1736439220903,12.9513834,192.59,192.48,1.5425]
[1736439221196,2.5977,192.53,192.49,2.5981]
[1736439222206,12.9513834,192.53,192.44,3.1313]
[1736439222402,12.9513834,192.53,192.48,2.5983]
[1736439222599,12.9513834,192.53,192.44,3.1313]
[1736439222805,1.5516,192.55,192.51,2.5979]
[1736439223608,2.5976,192.54,192.44,3.1313]
[1736439224107,2.5976,192.54,192.45,12.9513834]
[1736439224308,2.5976,192.54,192.47,2.5983]
[1736439224505,2.5976,192.54,192.45,12.9513834]
[1736439225110,2.5976,192.54,192.47,2.5983]
[1736439225309,2.5977,192.53,192.44,3.1313]
[1736439225514,12.9513834,192.53,192.44,1.6262]
[1736439225808,2.598,192.5,192.43,1.5766]
[1736439226113,12.9513834,192.53,192.43,1.5766]
[1736439226308,12.9513834,192.5,192.44,2.5988]
[1736439226513,2.5986,192.46,192.39,3.026]
[1736439226713,12.9513834,192.5,192.39,15.9773834]
[1736439227006,2.5979,192.51,192.39,15.9773834]
[1736439227212,3.1474,192.55,192.42,12.9513834]
[1736439227413,3.1474,192.55,192.43,1.5125]
[1736439227616,4.149,192.55,192.51,2.5978]
[1736439227813,1.5516,192.55,192.45,12.9513834]
[1736439228215,1.5516,192.55,192.5,2.598]
[1736439228414,1.5516,192.55,192.45,12.9513834]
[1736439228818,4.1491,192.55,192.45,12.9513834]
[1736439229618,1.5516,192.55,192.43,1.5125]
[1736439229912,2.5976,192.53,192.43,1.5125]
[1736439230122,12.9513834,192.53,192.43,1.5125]
[1736439231117,2.5979,192.52,192.43,1.5125]
[1736439232714,2.5977,192.53,192.43,1.5125]
[1736439232915,1.5516,192.55,192.45,12.9513834]
[1736439233411,4.1491,192.55,192.48,2.5983]
[1736439233613,1.5516,192.55,192.45,12.9513834]
[1736439234412,1.5516,192.55,192.5,2.5979]
[1736439234413,2.5976,192.54,192.5,2.5979]
[1736439234708,2.5976,192.54,192.43,1.5125]
[1736439234709,12.9513834,192.53,192.43,1.5125]
[1736439235213,2.598,192.51,192.46,2.5986]
[1736439235407,12.9513834,192.53,192.46,2.5986]
[1736439235613,12.9513834,192.53,192.42,12.9513834]
[1736439235814,12.9513834,192.53,192.39,15.9773834]
[1736439236320,2.5983,192.49,192.45,2.5986]
[1736439236518,12.9513834,192.53,192.45,2.5986]
[1736439236707,2.5983,192.49,192.45,2.5986]
[1736439237321,2.598,192.51,192.47,2.5984]
[1736439237515,12.9513834,192.53,192.42,12.9513834]
[1736439237916,12.9513834,192.53,192.46,2.5985]
[1736439237917,2.5981,192.5,192.46,2.5985]
[1736439238422,2.5984,192.48,192.44,2.5987]
[1736439238610,2.5984,192.48,192.39,15.9773834]
[1736439239015,12.9513834,192.53,192.39,15.9773834]
[1736439239622,2.5981,192.5,192.43,2.599]
[1736439239826,2.5981,192.5,192.39,3.026]
[1736439240125,2.5981,192.5,192.39,15.9773834]
[1736439240319,2.5981,192.5,192.46,2.5985]
[1736439240522,2.5981,192.5,192.39,15.9773834]
[1736439241017,15.5494834,192.5,192.46,2.5985]
[1736439241422,2.5981,192.5,192.46,2.5985]